Cogmind - Beta 17.1 @@@ ROGUE MODE // 2026.09.11 @ 22:53:28 Player: 4R-ZE3 Result: Fortifying 0b10! Performance ------------- Evolutions (9) 4500 Regions Visited (23) 4600 Robots Destroyed (351) 1755 Value Destroyed (23037) 23037 Prototype IDs (65) 1300 Alien Tech Used (0) 0 Bonus (23690) 23690 TOTAL SCORE: 58882 Bonus ------- High Alert Combat Kills 3509 Follower Combat Kills 2016 Met Warlord at Base 500 MAIN.C Attacked Warlord 500 Warlord Defense Kills 1536 Built Enhanced Grunts 300 A7 Reached Mainframe 300 Met R17 at Cetus 500 Met R17 at Research 2000 Destroyed MAIN.C Guards 500 Met MAIN.C 5000 Destroyed MAIN.C Shell 5000 Win 3000 Friendly Fire -971 Cogmind --------- Core Integrity 198/1600 Matter 300/300 Energy 796/796 System Corruption 9% Temperature Cool (-200) Movement Walking (123) Location By MAIN.C's Side Parts ------- > --- POWER (3) -------- Micro Antimatter Reactor Quantum-Antimatter Reactor > --- PROPULSION (8) --- HC-Armored Exoskeleton > --- UTILITY (10) ----- Armored Scrap Engine Advanced Cryofiber Web Experimental Heat Sink Experimental Heat Sink Huge Storage Unit Experimental Core Analyzer Experimental Core Analyzer Advanced Phase Shifter Experimental Core Shielding > --- WEAPON (4) ------- Enhanced Quantum Rifle Heavy Quantum Rifle Long-range Phase Cannon Enhanced Nova Cannon > --- INVENTORY (25) --- Advanced Heat Sink Advanced Heat Sink Advanced Cooling System Advanced Cooling System Experimental Cooling System Experimental Energy Well (600) Experimental Energy Well (600) Improved Trap Scanner Experimental Optical Array Improved Thermal Shield Advanced Force Field Long-range Tractor Beam Gamma Rifle Phase Gun Phase Gun Compact HERF Cannon Multirail Light Antimatter Cannon Compact Linear Accelerator Peak State ------------ > --- POWER ------------ Micro Antimatter Reactor Quantum-Antimatter Reactor > --- PROPULSION ------- HC-Armored Exoskeleton > --- UTILITY ---------- Armored Scrap Engine Experimental Cooling System Advanced Coolant Injector Huge Storage Unit Advanced Targeting Computer Experimental Core Analyzer Experimental Core Analyzer Advanced Dynamic Insulation System Experimental System Purifier > --- WEAPON ----------- Multirail Compact Linear Accelerator Graviton Cannon Hpw. Ballistic Helical Construct/G > --- INVENTORY -------- Advanced Cryofiber Web Advanced Cryofiber Web Advanced Heat Sink Advanced Heat Sink Experimental Heat Sink Advanced Cooling System Advanced Cooling System Experimental Energy Well Experimental Energy Well Improved Trap Scanner Experimental Optical Array Advanced Kinecellerator Centrium Medium Armor Plating Centrium Heavy Armor Plating Improved Thermal Shield Advanced Force Field Long-range Tractor Beam Gamma Rifle Heavy Quantum Rifle Enhanced Nova Cannon Graviton Cannon [Rating: 225] Favorites ----------- Power Constructs Engine Light Ion Engine Power Core Light Nuclear Core Reactor Constructs Propulsion Constructs Treads Light Treads Leg Constructs Wheel Maxwheels Utility Armored Scrap Engine Device Armored Scrap Engine Storage Huge Storage Unit Processor Experimental Core Analyzer Protection Centrium Medium Armor Plating Weapon Constructs Energy Gun Medium Laser Energy Cannon Subdweller Beam Cannon Ballistic Gun Constructs Ballistic Cannon Graviton Cannon Launcher Mini Grenade Launcher Build | -11 -10 -10 -8 -8 -8 -6 -6 -6 -6 -6 -5 -5 -5 -5 -4 -4 -4 -4 -3 -3 -2 -1 -1 ------- Run | Yrd Mat Sub Mat Sto Rec Fac Was Fac Low Low Fac Upp Upp War Pro Fac Ext Cet Res Tes Res Acc Com Slots Evolved 18 | . . . 4 . . 4 . . . . 2 . . . . 2 . . 2 . 2 2 . Power 2 | . . . . . . 1 . . . . . . . . . 1 . . . . . . . Propulsion 6 | . . . 2 . . . . . . . 1 . . . . . . . 1 . 1 1 . Utility 8 | . . . 2 . . 2 . . . . . . . . . 1 . . 1 . 1 1 . Weapon 2 | . . . . . . 1 . . . . 1 . . . . . . . . . . . . Parts Attached 187 | 6 9 12 13 2 10 12 . 7 8 3 1 . 1 11 1 17 5 2 10 13 8 2 34 Power 14 | 1 2 1 2 . . 1 . 2 . 1 . . . . . 2 1 . . . . . 1 Engine 2 | 1 1 . . . . . . . . . . . . . . . . . . . . . . Core 8 | . 1 1 2 . . 1 . 2 . . . . . . . 1 . . . . . . . Reactor 4 | . . . . . . . . . . 1 . . . . . 1 1 . . . . . 1 Propulsion 11 | 2 . 3 1 . 4 . . . . . . . . . . 1 . . . . . . . Treads 6 | 2 . 3 . . . . . . . . . . . . . 1 . . . . . . . Leg . | . . . . . . . . . . . . . . . . . . . . . . . . Wheel 5 | . . . 1 . 4 . . . . . . . . . . . . . . . . . . Hover . | . . . . . . . . . . . . . . . . . . . . . . . . Flight . | . . . . . . . . . . . . . . . . . . . . . . . . Utility 100 | 1 3 2 4 . 4 10 . 3 7 2 1 . . 9 1 5 2 2 7 7 5 2 23 Device 68 | . 2 2 4 . 1 7 . 3 6 2 . . . 5 1 2 2 1 3 6 3 1 17 Storage 7 | 1 1 . . . 2 . . . . . 1 . . . . . . 1 . . . . 1 Processor 19 | . . . . . . 2 . . . . . . . 4 . 3 . . 4 1 2 1 2 Hackware . | . . . . . . . . . . . . . . . . . . . . . . . . Protection 6 | . . . . . 1 1 . . 1 . . . . . . . . . . . . . 3 Artifact . | . . . . . . . . . . . . . . . . . . . . . . . . Weapon 62 | 2 4 6 6 2 2 1 . 2 1 . . . 1 2 . 9 2 . 3 6 3 . 10 Energy Gun 16 | 1 1 . 3 . . 1 . . 1 . . . 1 1 . . . . 2 3 . . 2 Energy Cannon 16 | . 3 3 1 . . . . 1 . . . . . 1 . . . . 1 3 . . 3 Ballistic Gun 24 | 1 . 2 2 2 1 . . 1 . . . . . . . 9 2 . . . 3 . 1 Ballistic Cannon 4 | . . . . . . . . . . . . . . . . . . . . . . . 4 Launcher 2 | . . 1 . . 1 . . . . . . . . . . . . . . . . . . Special Weapon . | . . . . . . . . . . . . . . . . . . . . . . . . Impact Weapon . | . . . . . . . . . . . . . . . . . . . . . . . . Slashing Weapon . | . . . . . . . . . . . . . . . . . . . . . . . . Piercing Weapon . | . . . . . . . . . . . . . . . . . . . . . . . . Special Melee Weapon . | . . . . . . . . . . . . . . . . . . . . . . . . Unidentified Prototypes 48 | . . 1 . . 1 2 . . 1 . . . . 8 . 1 . . 6 11 2 . 15 Parts Lost 54 | . 1 1 2 2 1 2 . 5 3 4 . . . 1 1 6 2 . . 1 3 1 18 Power 13 | . 1 . 1 . . 1 . 3 1 1 . . . . . 3 . . . 1 . . 1 Propulsion . | . . . . . . . . . . . . . . . . . . . . . . . . Utility 25 | . . 1 . . . 1 . 2 1 3 . . . . . . 2 . . . 2 1 12 Weapon 16 | . . . 1 2 1 . . . 1 . . . . 1 1 3 . . . . 1 . 5 Highest Loss Streak 7 | . 1 1 2 1 1 1 . 3 2 2 . . . 1 1 4 1 . . 1 1 1 7 To Critical Strikes 2 | . . . . . . . . . . . . . . . . . 1 . . . 1 . . Average Backups 15 | 1 8 9 9 10 8 16 18 18 19 15 10 14 14 14 14 14 14 14 21 24 22 23 19 Power . | . 2 1 . 1 1 1 2 . . . . 1 1 . . . . 1 1 . . . . Propulsion 1 | . 2 . 1 . 1 3 2 3 2 2 . . . . . . 1 2 . . . . . Utility 11 | . . 2 2 2 3 8 11 11 15 11 9 12 12 11 12 12 12 11 18 21 19 19 16 Weapon 2 | . 2 5 5 7 2 3 3 2 . 1 . 1 1 2 1 1 . . 1 2 2 3 2 Tool/Special . | . . . . . . . . . . . . . . . . . . . . . . . . Unused Backups 115 | . 3 11 6 1 16 11 . 7 1 8 3 . . 10 2 4 2 . 5 . 7 6 12 Power 7 | . . 2 1 . 1 . . . . . . . . 1 1 . . . . . . . 1 Propulsion 19 | . 2 1 . . 2 2 . 2 . 3 . . . . . . 2 . 4 . . 1 . Utility 28 | . . 1 3 . 2 1 . . . 4 2 . . 4 . 2 . . . . 1 1 7 Weapon 61 | . 1 7 2 1 11 8 . 5 1 1 1 . . 5 1 2 . . 1 . 6 4 4 Tool/Special . | . . . . . . . . . . . . . . . . . . . . . . . . Average Slot Usage (%) 60 | . 97 99 69 73 62 54 53 52 62 48 49 47 47 48 47 60 62 50 46 46 48 52 54 Core 3 | . 4 14 7 8 8 7 6 6 8 1 3 . . . . 3 . . . . . . . Reactor 2 | . . . . . . . . . . 1 3 5 5 3 5 5 9 5 4 4 4 4 5 Treads 4 | . 28 28 . . . . . . . . . . . . 1 2 1 4 1 . . . 1 Leg 1 | . . . . . . . 6 2 5 6 3 . . 2 3 . 2 . . 1 . 1 2 Wheel 1 | . . . 6 8 8 . . . . . . . . . . . . . . . . . . Hover 1 | . . . . . 2 4 . 3 . . . . . . . 1 . . 1 . . 2 . Device 15 | . 11 13 18 25 19 19 20 19 19 20 17 17 17 15 11 10 13 15 16 13 13 9 14 Storage 6 | . 14 14 7 8 9 6 6 6 6 4 4 5 5 5 5 5 5 5 4 4 4 4 4 Processor 8 | . . . . . . 5 6 6 6 6 5 5 5 6 11 15 11 10 11 13 15 22 14 Energy Gun 1 | . 10 . 6 . 1 . . . 1 . . . . 1 . 1 . 1 . . . . 1 Energy Cannon 4 | . 14 26 14 7 1 3 6 2 6 . 2 3 5 3 . 1 . . 1 2 2 . 3 Ballistic Gun 4 | . 3 1 5 15 8 . . . 4 5 . . . . . 12 15 7 . . 2 5 . Ballistic Cannon 1 | . . . . . 1 2 . 2 . . 2 1 . 1 3 . . . 1 1 . 1 4 Peak Build Rating 225 | 6 12 18 54 54 65 71 73 74 83 81 89 91 97 109 102 125 138 131 157 173 209 209 225 Average Rating 103 | 4 9 15 51 51 44 62 73 69 77 67 80 90 91 98 97 110 129 116 136 156 183 196 197 On Entrance 87 | . 6 12 18 54 50 49 73 73 74 71 81 89 91 91 102 91 125 131 120 157 157 196 194 Avg Prop Armor Cover (%) . | . . . . . . . . . . . . . . . . . . . . . . . . Naked Turns . | . . . . . . . . . . . . . . . . . . . . . . . . Heaviest Build 178 | 12 22 32 42 42 59 65 57 65 70 52 60 51 49 77 73 69 83 121 154 156 153 154 178 Greatest Support 275 | 40 40 40 30 30 76 76 71 71 71 71 50 50 50 50 101 127 162 136 136 171 275 220 220 Greatest Overweight (x) 3 | . . . 1 1 3 1 . . . . 1 1 . 2 2 1 . . 2 1 1 1 . Average Overweight (x) . | . . . . . . . . . . . . . . . . . . . . . . . . Largest Inventory Capacity 25 | 8 10 10 10 10 20 20 20 20 20 20 15 15 15 15 15 15 15 25 25 25 25 25 25 Average Capacity 18 | 6 9 10 10 10 18 20 20 20 20 15 14 15 15 15 15 15 15 16 25 25 25 25 25 Most Carried 25 | 4 10 10 10 10 20 20 18 20 20 20 15 14 15 15 15 15 15 23 25 25 25 25 25 Average Carried 15 | 1 8 9 9 10 8 16 18 18 19 15 10 14 14 14 14 14 14 15 21 24 22 23 19 Final Capacity 25 | 8 10 10 10 10 20 20 20 20 20 5 15 15 15 15 15 15 15 25 25 25 25 25 25 Final Carried 25 | 4 10 10 10 10 11 18 18 19 19 5 14 14 15 15 14 13 15 23 24 23 25 23 19 Scrap Engine Consumption 488 | . . . . . 40 34 2 25 8 8 15 4 2 33 5 42 34 12 44 26 65 45 44 Constructs Created 11 | . . . . . 3 1 . 2 1 1 . . . . . 2 . . . . 1 . . Constructs Modified 209 | . . . . . 13 16 . 8 3 3 6 2 . 14 6 17 15 6 18 14 26 25 17 Class Distribution -------------------- 39% | Construct 20% | Scavenger-Construct 16% | Mutant 13% | Commander-Construct 3% | Skirmisher 3% | Scavenger-Mutant Dominant Class ---------------- Mutant | -10/Materials Mutant | -10/Subcaves Gunner | -8/Materials Mutant | -8/Storage Mutant | -8/Recycling Construct | -6/Factory Construct | -6/Waste Construct | -6/Factory Construct | -6/Lower Caves Construct | -6/Lower Caves Construct | -5/Factory Construct | -5/Upper Caves Construct | -5/Upper Caves Construct | -5/Warlord Construct | -4/Proximity Caves Skirmisher | -4/Factory Construct | -4/Extension Commander-Construct | -4/Cetus Commander-Construct | -3/Research Construct | -3/Testing Scavenger-Construct | -2/Research Scavenger-Construct | -1/Access Scavenger-Construct | -1/Command Resources | -11 -10 -10 -8 -8 -8 -6 -6 -6 -6 -6 -5 -5 -5 -5 -4 -4 -4 -4 -3 -3 -2 -1 -1 ----------- Run | Yrd Mat Sub Mat Sto Rec Fac Was Fac Low Low Fac Upp Upp War Pro Fac Ext Cet Res Tes Res Acc Com Matter Collected 11466 | 152 234 178 240 109 370 1036 . 551 254 65 30 92 11 218 54 928 1195 186 120 545 1233 1052 2613 Remotely 852 | . . . . . . . . . . . . . . . . . . . . . . . 852 Salvage Created 20499 | . 702 456 745 355 284 1073 . 366 540 298 145 149 . 855 209 1222 1321 353 399 1637 1935 3843 3612 Parts 914 | . 52 26 38 29 10 54 . 33 21 14 9 7 . 32 6 73 64 12 12 57 92 186 87 Haulers Intercepted 8 | . 2 . . 1 . 1 . . 1 . . . . . . . . . 2 1 . . . Recyclers Shooed 5 | . . . . 1 . 1 . . . . . . . . . . 1 . 1 . . 1 . Parts Field Recycled . | . . . . . . . . . . . . . . . . . . . . . . . . Retrieved Matter . | . . . . . . . . . . . . . . . . . . . . . . . . Parts Self-Destructed 46 | . . 14 . . . . . . 18 10 . 2 . . 2 . . . . . . . . Prevented . | . . . . . . . . . . . . . . . . . . . . . . . . Parts Restored . | . . . . . . . . . . . . . . . . . . . . . . . . Kills | -11 -10 -10 -8 -8 -8 -6 -6 -6 -6 -6 -5 -5 -5 -5 -4 -4 -4 -4 -3 -3 -2 -1 -1 ------- Run | Yrd Mat Sub Mat Sto Rec Fac Was Fac Low Low Fac Upp Upp War Pro Fac Ext Cet Res Tes Res Acc Com Combat Hostiles Destroyed 292 | . 16 14 14 6 3 22 . 9 13 7 2 1 . 16 2 18 15 5 2 20 28 49 30 Melee 1 | . . . . . . . . . . . . . . 1 . . . . . . . . . Guns 90 | . 10 2 3 2 3 . . . 7 7 . . . . . 10 15 5 . . 7 14 5 Cannons 176 | . 5 9 11 4 . 19 . 7 4 . 2 1 . 13 2 6 . . 1 19 21 31 21 AOE 12 | . . 3 . . . 3 . . 2 . . . . . . . . . . . . 4 . Classes Destroyed 26 | . 6 3 1 2 1 4 . . 1 . . . . 3 . . . . . . 3 1 1 Worker 6 | . . . . . . 2 . . . . . . . . . 1 . . . 1 . 1 1 Builder 10 | . 1 . . . 1 . . . . . . . . . . 1 3 . 1 . . 3 . Tunneler 2 | . 1 . . . . . . . . . . . . . . . . . . . . 1 . Hauler 8 | . 2 . . 1 . 1 . . 1 . . . . . . . . . 2 1 . . . Recycler 5 | . . . . 1 . . . . . . . . . . . . 1 . . . 1 . 2 Operator 8 | . . . . 1 . . . . . . . . . . . 1 2 . . 2 1 1 . Turret 1 | . . 1 . . . . . . . . . . . . . . . . . . . . . Watcher 17 | . 1 . . . . 2 . . . . 1 . . . . 6 2 . . 1 3 1 . Swarmer 65 | . 3 5 . 3 . 9 . 5 8 4 . . . . . 5 . . . 3 14 6 . Cutter 3 | . . . . . . 3 . . . . . . . . . . . . . . . . . Saboteur 2 | . . . . . . . . . . . . . . 2 . . . . . . . . . Grunt 85 | . 13 . 8 . 1 4 . . 5 3 . . . 11 . . 4 . 1 8 4 19 4 Brawler 3 | . . . 1 . . . . . . . . . . . . . . . . . . 2 . Duelist 3 | . . . . . . . . . . . . . . . . . . . . . . 3 . Protector 3 | . . . . . . . . . . . . . . 2 . . . . . . . 1 . Sentry 29 | . . 1 5 3 1 1 . 2 . . . . . . . 2 7 . 1 3 2 1 . Demolisher 3 | . . . . . 1 . . . . . . . . . . . . . . . 2 . . Specialist 1 | . . . . . . . . . . . . . . 1 . . . . . . . . . Hunter 23 | . . . . . . 1 . 1 . . . . . . 2 8 2 . . 2 2 5 . Programmer 29 | . . . . . . 4 . 1 . . 2 1 . . . 3 . . . 3 1 11 3 Heavy 1 | . . . . . . . . . . . . . . . . . . . . . . 1 . Cetus Guard 5 | . . . . . . . . . . . . . . . . . . 5 . . . . . M Guard 2 | . . . . . . . . . . . . . . . . . . . . . . . 2 Enhanced Q-Series 18 | . . . . . . . . . . . . . . . . . . . . . . . 18 Combat Programmer 2 | . . . . . . . . . . . . . . . . . . . . . . . 2 Striker 1 | . . . . . . . . . . . . . . . . . . . . . 1 . . Executioner 2 | . . . . . . . . . . . . . . . . . . . . . 2 . . Subdweller 9 | . . 8 . . . 1 . . . . . . . . . . . . . . . . . Samaritan 3 | . . . . . . . . . 1 . . 2 . . . . . . . . . . . Thug 2 | . . . . . . . . . . . . . . . . . 2 . . . . . . Savage 1 | . . . . . . . . . . . . . . . . . . . . 1 . . . Butcher 1 | . . . . . . . . . . . . . . . . . . . . . 1 . . Best Kill Streak 10 | . 4 3 4 5 2 4 . 3 6 4 2 1 . 5 1 4 9 3 2 5 6 10 7 Combat Bots Only 9 | . 4 3 4 4 2 4 . 3 5 4 2 1 . 5 1 3 5 3 1 5 6 9 6 Max Kills in Single Turn 6 | . 2 2 1 1 1 2 . 1 2 1 1 1 . 2 1 2 2 2 1 1 2 6 2 Gunslinging 1 | . . . . . . . . . . . . . . . . . . 1 . . . . . Exploded 4 | . . 2 . . . 1 . . 1 . . . . . . . . . . . . 4 . Melee 1 | . . . . . . . . . . . . . . 1 . . . . . . . . . Uniques/NPCs Destroyed 1 | . . . . . . . . . . . . . . . . . . . . . . . 1 MAIN.C Shell (-1/Command) Combat | -11 -10 -10 -8 -8 -8 -6 -6 -6 -6 -6 -5 -5 -5 -5 -4 -4 -4 -4 -3 -3 -2 -1 -1 -------- Run | Yrd Mat Sub Mat Sto Rec Fac Was Fac Low Low Fac Upp Upp War Pro Fac Ext Cet Res Tes Res Acc Com Hostile Shots Fired 2387 | . 55 47 69 41 23 165 . 194 78 70 19 4 . 106 76 260 154 23 4 79 167 232 521 Missed 764 | . 16 18 21 7 5 61 . 65 27 16 6 1 . 38 26 89 70 6 4 26 42 83 137 Hits 1623 | . 39 29 48 34 18 104 . 129 51 54 13 3 . 68 50 171 84 17 . 53 125 149 384 Melee 12 | . . . . . . 8 . . . . . . . 3 . . . . . . . 1 . Projectile 1611 | . 39 29 48 34 18 96 . 129 51 54 13 3 . 65 50 171 84 17 . 53 125 148 384 AOE 18 | . . . . . 7 1 . . . . . . . 1 . . . . . . 2 . 7 Critical Strikes 83 | . . . 3 . 2 4 . 2 . 3 4 1 . 2 . 8 6 3 . 4 3 8 30 Actively Blocked 1 | . . . . . . . . . . . . . . . . . . . . . . . 1 Part Disruptions 2 | . . . . . . . . . . . . . . . . . . . . . . . 2 Damage Taken 36229 | . 420 474 771 379 528 1585 . 1473 840 907 258 59 . 1265 956 3141 1828 388 38 1307 3242 3362 13008 Core 3760 | . 41 121 148 60 87 296 . 369 66 102 21 . . 144 140 258 78 66 . 43 318 225 1177 Absorbed by Shields 459 | . . . . . . 4 . . . . . . . 79 . 12 . 105 . . . . 259 Reduced by Siege Mode 890 | . . . . . . . . . . . . . . . . . . 8 . . . . 882 Redirected to Shielding 45 | . . . . . . . . . . . . . . . . . . . . . . . 45 Ignored by Resistances 233 | . . . . . . . . . . . . . . . . 42 . . . . . . 191 Regen/Repaired (Parts) 17376 | . . . . . 5 657 . 805 357 572 99 36 . 580 502 1069 1534 201 30 786 1240 3150 5753 Core Remaining (%) 55 | 100 . 35 . . 46 . . . . 2 . . . . 69 . . 65 . 96 78 . 12 Volleys Fired 1180 | . 42 37 35 22 18 71 . 49 38 34 21 5 1 78 27 111 70 10 19 72 85 121 214 Largest 4 | . 2 2 4 3 2 1 . 1 2 1 1 1 1 2 1 4 4 3 1 1 3 4 4 Hottest 370 | . 120 160 243 126 46 270 . 270 154 64 128 90 90 160 60 131 148 98 102 274 274 166 370 Shots Fired 2022 | . 84 65 113 49 31 71 . 49 49 34 21 5 1 82 26 219 227 30 19 72 159 213 403 Gun 1012 | . 60 4 63 38 27 . . 1 26 34 . . . 4 1 177 227 30 6 . 90 130 94 Cannon 997 | . 24 58 50 11 3 70 . 46 17 . 21 5 1 78 25 42 . . 13 72 69 83 309 Launcher 13 | . . 3 . . 1 1 . 2 6 . . . . . . . . . . . . . . Special . | . . . . . . . . . . . . . . . . . . . . . . . . Kinetic 1327 | . 7 4 30 38 27 45 . 7 10 16 17 . . 46 25 185 227 20 11 26 138 198 250 Thermal 544 | . 77 58 83 11 3 25 . 23 33 18 4 5 1 . . . . 10 6 24 21 4 138 Explosive 13 | . . 3 . . 1 1 . 2 6 . . . . . . . . . . . . . . Electromagnetic 105 | . . . . . . . . 17 . . . . . 20 1 17 . . 2 22 . 11 15 Entropic 33 | . . . . . . . . . . . . . . 16 . 17 . . . . . . . Robot Hit Streak 45 | . 19 12 16 12 17 17 . 6 4 9 7 5 . 6 8 22 21 8 5 10 8 16 45 Robot Miss Streak 11 | . 4 4 3 8 2 6 . 5 3 2 2 . . 4 2 5 11 2 3 4 3 3 4 Penetration Max 2 | . . . . . . . . . . . 1 . . 1 1 1 2 1 . . 1 1 1 Secondary Targets 15 | . . . . . . . . . . . . . . . . 3 8 2 . . . 2 . Max Gunslinging Chain 1 | . . . . . . . . . . . . . . . . 1 1 1 . . . 1 . Shots Hit Robots 1328 | . 57 42 70 26 23 62 . 25 25 25 8 5 . 53 19 127 142 21 11 40 89 131 327 Core Hits 646 | . 29 18 25 10 8 42 . 6 28 12 3 3 . 25 10 49 64 12 6 23 49 86 138 Critical Kills 11 | . . 1 . . . . . . . . . . . . . . 2 2 . . 2 1 3 Critical Parts Destroyed 11 | . . . . . . . . . . . . . . . . 1 4 1 . 1 3 . 1 Critical Strikes 35 | . 2 1 . . . . . . . . . . . . . 1 7 6 . 1 5 1 11 Burn 3 | . 2 . . . . . . . . . . . . . . . . 1 . . . . . Meltdown 3 | . . . . . . . . . . . . . . . . . . . . . . . 3 Destroy 24 | . . 1 . . . . . . . . . . . . . 1 7 5 . 1 5 1 3 Blast 5 | . . . . . . . . . . . . . . . . . . . . . . . 5 Melee Attacks . | . . . . . . . . . . . . . . . . . . . . . . . . Impact . | . . . . . . . . . . . . . . . . . . . . . . . . Slashing . | . . . . . . . . . . . . . . . . . . . . . . . . Piercing . | . . . . . . . . . . . . . . . . . . . . . . . . Sneak Attacks . | . . . . . . . . . . . . . . . . . . . . . . . . Combat Hostiles . | . . . . . . . . . . . . . . . . . . . . . . . . Follow-up Attacks . | . . . . . . . . . . . . . . . . . . . . . . . . Damage Inflicted 63413 | . 907 1058 1558 566 426 2996 . 1265 972 519 409 247 . 2550 553 4124 4175 673 750 5365 5713 9756 18831 Guns 18360 | . 603 58 595 391 354 . . . 364 519 . . . 20 . 2683 4175 673 141 . 1480 2516 3788 Cannons 43116 | . 304 880 963 175 39 2574 . 1265 255 . 409 247 . 2530 553 1285 . . 609 5173 4233 6672 14950 Explosions 1892 | . . 120 . . . 422 . . 353 . . . . . . 144 . . . 192 . 568 93 Melee . | . . . . . . . . . . . . . . . . . . . . . . . . Ramming 45 | . . . . . 33 . . . . . . . . . . 12 . . . . . . . Kinetic 40019 | . 64 58 276 391 354 1645 . 66 208 304 324 . . 1263 553 2959 4175 503 491 2344 4401 8802 10838 Thermal 17334 | . 843 880 1282 175 39 1351 . 946 411 215 85 247 . . . 144 . 170 141 726 1312 685 7682 Explosive 665 | . . 120 . . . . . . 353 . . . . . . . . . . 192 . . . Electromagnetic 3857 | . . . . . . . . 253 . . . . . 492 . 311 . . 118 2103 . 269 311 Impact . | . . . . . . . . . . . . . . . . . . . . . . . . Slashing . | . . . . . . . . . . . . . . . . . . . . . . . . Piercing . | . . . . . . . . . . . . . . . . . . . . . . . . Entropic 1493 | . . . . . . . . . . . . . . 795 . 698 . . . . . . . Highest Corruption 39 | . . . 3 3 3 . 7 8 8 . 3 3 3 4 4 6 6 6 . 4 . 4 39 Average Corruption 5 | . . . 1 3 3 . 7 7 6 . 2 3 3 3 4 2 6 6 . 3 . 3 19 Corruption Purged 54 | . . . . . . . . . 8 . . . . . . . . . . . . . 46 Corruption Blocked . | . . . . . . . . . . . . . . . . . . . . . . . . Effects 289 | . . . 4 6 40 . . 23 19 . 5 7 8 8 12 21 43 17 . 9 . 3 64 Message Errors 71 | . . . 2 4 7 . . 8 4 . 2 2 3 . 2 4 10 4 . 3 . 1 15 Matter Fused 71 | . . . 1 1 10 . . 6 4 . 1 3 2 5 2 7 7 5 . 2 . 1 14 Heat Flow Errors 31 | . . . . . 8 . . 1 1 . . 1 . 1 1 3 9 . . 1 . . 5 Energy Discharges 31 | . . . . . 6 . . 1 2 . . 1 . . 4 3 5 1 . 1 . . 7 Parts Rejected 7 | . . . . . . . . . . . 1 . . 1 . 1 . 1 . . . . 3 Parts Fused 2 | . . . . . . . . . . . . . . . . . . 1 . 1 . . . Data Loss (minor) 34 | . . . 1 . 7 . . 4 4 . . . 2 . 1 1 4 4 . 1 . . 5 Data Loss (major) 13 | . . . . . . . . 3 3 . . . 1 . . . 4 1 . . . . 1 Misfires 3 | . . . . . . . . . 1 . . . . . . . 1 . . . . . 1 Alerts 7 | . . . . 1 1 . . . . . 1 . . 1 1 . 1 . . . . 1 . Misdirections 3 | . . . . . . . . . . . . . . . . . . . . . . . 3 Weapon Failures 16 | . . . . . 1 . . . . . . . . . 1 2 2 . . . . . 10 Overload Shots . | . . . . . . . . . . . . . . . . . . . . . . . . Overflow Damage 4068 | . . . 4 10 11 100 . 161 . . 44 42 . 97 57 178 . . . 1075 832 862 595 Projectiles 3953 | . . . 4 10 . 86 . 161 . . 44 42 . 97 57 178 . . . 1075 832 772 595 Explosions 104 | . . . . . . 14 . . . . . . . . . . . . . . . 90 . Melee 11 | . . . . . 11 . . . . . . . . . . . . . . . . . . Knockbacks 118 | . . . . . . 17 . 2 . . 4 . . 9 2 7 . . 1 2 9 19 46 Impact . | . . . . . . . . . . . . . . . . . . . . . . . . Kinetic 105 | . . . . . . 14 . 2 . . 3 . . 8 2 7 . . 1 2 7 16 43 Secondary 13 | . . . . . . 3 . . . . 1 . . 1 . . . . . . 2 3 3 Self-Inflicted Damage 451 | . . . . . 16 135 . . . . . . . . . 6 . . . 122 . 87 85 Shots 6 | . . . . . . 3 . . . . . . . . . . . . . 1 . 1 1 Rammed 2 | . . . . . 1 . . . . . . . . . . 1 . . . . . . . Targets Rammed 2 | . . . . . 1 . . . . . . . . . . 1 . . . . . . . Kicked . | . . . . . . . . . . . . . . . . . . . . . . . . Crushed . | . . . . . . . . . . . . . . . . . . . . . . . . Highest Temperature 547 | . 318 225 408 . 185 300 . 333 184 285 168 155 2 235 242 233 341 12 . 430 253 258 547 Average Temperature 95 | . 75 64 135 . 78 111 . 99 66 138 61 90 2 89 134 62 100 5 . 105 92 72 103 Received Heat Transfer 3964 | . 204 60 429 81 69 156 . 225 156 210 9 . . 302 . 40 171 . . 42 18 288 1504 Effects 13 | . 1 . 3 . . . . 2 . . . . . . . . 1 . . 1 . . 5 Shutdowns 1 | . . . . . . . . . . . . . . . . . . . . 1 . . . Energy Bleed 3 | . 1 . . . . . . . . . . . . . . . . . . . . . 2 Interference 6 | . . . 3 . . . . 1 . . . . . . . . . . . . . . 2 Short Circuit 3 | . . . . . . . . 1 . . . . . . . . 1 . . . . . 1 Siege Activations 7 | . . . . . . . . . . . . . . . . . . 1 . . . . 6 Total Turns 281 | . . . . . . . . . . . . . . . . . . 6 . . . . 275 Longest Duration 102 | . . . . . . . . . . . . . . . . . . 6 . . . . 102 Martial Activations . | . . . . . . . . . . . . . . . . . . . . . . . . Shielding Activations . | . . . . . . . . . . . . . . . . . . . . . . . . Robots Disrupted . | . . . . . . . . . . . . . . . . . . . . . . . . Combat Hostiles . | . . . . . . . . . . . . . . . . . . . . . . . . Robots Corrupted 10 | . . . . . . . . 2 . . . . . 2 . 2 . . 1 1 . 1 1 Combat Hostiles 9 | . . . . . . . . 2 . . . . . 2 . 2 . . 1 1 . . 1 Parts Fried 51 | . . . . . . . . 3 . . . . . 7 . 5 . 1 . 21 . 4 10 Impact Corruptions 4 | . . . . . 1 . . . . . . . . . . . . . . . . 3 . Robots Melted 4 | . 1 . . . . . . . . . . . . . . . . . . . . . 3 Combat Hostiles 4 | . 1 . . . . . . . . . . . . . . . . . . . . . 3 Parts Melted 22 | . 2 5 2 . 1 . . 1 . . . . . . . . 1 . . . 3 1 6 Heat Transferred 12396 | . 2146 1406 1841 222 74 700 . 518 696 407 100 185 . . . 150 . 296 148 407 370 350 2380 Parts Sabotaged 2 | . . . . . . . . . . . . . . . . . . . . . . 2 . Parts Stolen . | . . . . . . . . . . . . . . . . . . . . . . . . Parts Stripped . | . . . . . . . . . . . . . . . . . . . . . . . . Power Chain Reactions 8 | . . . . . . 6 . . . . . . . . . . . . . . . 1 1 Alert | -11 -10 -10 -8 -8 -8 -6 -6 -6 -6 -6 -5 -5 -5 -5 -4 -4 -4 -4 -3 -3 -2 -1 -1 ------- Run | Yrd Mat Sub Mat Sto Rec Fac Was Fac Low Low Fac Upp Upp War Pro Fac Ext Cet Res Tes Res Acc Com Maximum Alert Level 4 | . 1 . . . . 1 . 1 . . . . . . . 2 1 2 2 3 3 4 3 Low Security (%) 56 | 100 71 . 100 100 100 84 100 90 . . 100 . . . . 66 40 16 94 . . . 55 Level 1 17 | . 28 . . . . 15 . 9 . . . . . . . 21 59 77 3 21 29 . . Level 2 13 | . . . . . . . . . . . . . . . . 11 . 5 2 29 57 54 . Level 3 10 | . . . . . . . . . . . . . . . . . . . . 49 12 34 44 Level 4 1 | . . . . . . . . . . . . . . . . . . . . . . 11 . Level 5 . | . . . . . . . . . . . . . . . . . . . . . . . . High Security . | . . . . . . . . . . . . . . . . . . . . . . . . Max Security . | . . . . . . . . . . . . . . . . . . . . . . . . Peak Influence 1357 | . 260 . 196 152 120 355 121 222 . . 66 . . . . 587 362 413 619 937 933 1357 1010 Initial 868 | . . . 86 72 55 150 121 77 . . 12 . . . . . 279 162 84 334 447 553 868 Average 281 | . 131 . 142 119 14 114 116 132 . . 13 . . . . 183 210 274 119 628 509 718 819 Influence Increases 11868 | . 559 336 427 210 273 851 . 467 345 205 173 30 . 335 50 1088 866 381 1095 1217 1062 1436 462 Destroy 0b10 Robot/C 6120 | . 320 200 280 120 140 460 . 180 260 140 40 20 . 280 40 360 500 160 320 540 560 960 240 Destroy 0b10 Robot/NC 355 | . 25 . . 15 15 25 . . 5 . 5 . . 10 . 45 50 10 25 40 25 40 20 Destroy Leader 1032 | . 76 10 80 42 . 116 . 50 20 20 12 10 . . 10 102 34 . 76 66 126 152 30 Allied During Kill 963 | . . 6 4 . 15 3 . . . . . . . . . . 152 170 421 192 . . . Successful Hack 280 | . 15 . 19 . 5 24 . 15 . . 28 . . . . 5 32 9 . 32 . 44 52 Select Force Hacks 150 | . 60 . . . 90 . . . . . . . . . . . . . . . . . . Disable Machine 660 | . . . . 30 . 45 . 30 . . 15 . . . . 210 15 . 45 180 15 60 15 Anti-Garrison Action 150 | . . . . . . . . . . . . . . . . . . . 150 . . . . Destroy Structure 1078 | . 3 . 14 3 8 28 . 27 . . 28 . . . . 276 68 32 58 152 141 150 90 Advance Influence 150 | . . . . . . 150 . . . . . . . . . . . . . . . . . Partial Spotted 60 | . . . 15 . . . . . . . 15 . . . . 15 15 . . . . . . Lose Combat Pursuer 870 | . 60 120 15 . . . . 165 60 45 30 . . 45 . 75 . . . 15 195 30 15 Influence Decreases 10886 | . 406 322 423 239 415 504 236 458 369 280 194 30 . 152 233 517 1146 531 641 1017 934 1002 837 Entered New Map 2803 | . . 74 81 99 87 . 226 34 45 19 9 . . . 183 . 292 129 57 261 348 370 489 Time Decay 6754 | . 396 248 262 120 262 484 10 374 294 221 185 30 . 142 50 457 531 342 504 386 556 622 278 Lost Part 410 | . 10 . 20 20 10 20 . 50 30 40 . . . 10 . 60 20 . . 10 30 10 70 Lost Ally 376 | . . . 60 . 56 . . . . . . . . . . . 60 60 80 60 . . . Purge Threat 543 | . . . . . . . . . . . . . . . . . 243 . . 300 . . . Squads Dispatched 69 | . 5 . 5 2 . 10 . 8 . . 3 . . . . 6 1 . 8 6 1 11 3 Investigation 10 | . 2 . 1 . . 1 . . . . 1 . . . . . . . 3 1 . 1 . Extermination 16 | . . . . . . 3 . 2 . . 2 . . . . 3 . . . 2 . 3 1 Reinforcement 22 | . 3 . 1 1 . 3 . . . . . . . . . 3 1 . 5 3 1 1 . Assault 5 | . . . . . . . . . . . . . . . . . . . . . . 3 2 Garrison 16 | . . . 3 1 . 3 . 6 . . . . . . . . . . . . . 3 . Intercept . | . . . . . . . . . . . . . . . . . . . . . . . . Searches Triggered . | . . . . . . . . . . . . . . . . . . . . . . . . Construction Impeded 1 | . . . . . . . . . . . . . . . . 1 . . . . . . . Haulers Reinforced 4 | . . . . . . 1 . . . . . . . . . . . . 2 1 . . . Active Scanning Responses . | . . . . . . . . . . . . . . . . . . . . . . . . Cargo Convoy Interrupts . | . . . . . . . . . . . . . . . . . . . . . . . . Stealth | -11 -10 -10 -8 -8 -8 -6 -6 -6 -6 -6 -5 -5 -5 -5 -4 -4 -4 -4 -3 -3 -2 -1 -1 --------- Run | Yrd Mat Sub Mat Sto Rec Fac Was Fac Low Low Fac Upp Upp War Pro Fac Ext Cet Res Tes Res Acc Com Distress Signals 38 | . 2 . . 1 . 1 . 2 . . . . . 1 . 4 2 2 4 2 6 . 11 Communications Jammed . | . . . . . . . . . . . . . . . . . . . . . . . . Distress Signals . | . . . . . . . . . . . . . . . . . . . . . . . . Times Spotted 580 | . 28 20 20 8 9 32 4 28 13 8 9 1 . 73 2 32 26 9 16 35 66 57 84 Peak Tracking Total 14 | . 4 5 5 4 3 4 4 6 5 4 4 1 . 11 2 5 5 5 8 5 10 8 14 Tactical Retreats 31 | . 3 2 1 . . . . 6 2 1 1 . . 3 . 3 . . . 1 5 2 1 Traps | -11 -10 -10 -8 -8 -8 -6 -6 -6 -6 -6 -5 -5 -5 -5 -4 -4 -4 -4 -3 -3 -2 -1 -1 ------- Run | Yrd Mat Sub Mat Sto Rec Fac Was Fac Low Low Fac Upp Upp War Pro Fac Ext Cet Res Tes Res Acc Com Traps Triggered 11 | . 1 . 3 . . 2 . . . . 2 . . . . 2 1 . . . . . . Indirectly . | . . . . . . . . . . . . . . . . . . . . . . . . Trap Hack Attempts . | . . . . . . . . . . . . . . . . . . . . . . . . Triggered . | . . . . . . . . . . . . . . . . . . . . . . . . Disarmed . | . . . . . . . . . . . . . . . . . . . . . . . . Reprogrammed . | . . . . . . . . . . . . . . . . . . . . . . . . Reused . | . . . . . . . . . . . . . . . . . . . . . . . . Traps Extracted . | . . . . . . . . . . . . . . . . . . . . . . . . Installed . | . . . . . . . . . . . . . . . . . . . . . . . . Triggered . | . . . . . . . . . . . . . . . . . . . . . . . . Machines | -11 -10 -10 -8 -8 -8 -6 -6 -6 -6 -6 -5 -5 -5 -5 -4 -4 -4 -4 -3 -3 -2 -1 -1 ---------- Run | Yrd Mat Sub Mat Sto Rec Fac Was Fac Low Low Fac Upp Upp War Pro Fac Ext Cet Res Tes Res Acc Com Machines Disabled 53 | . . 2 . 2 . 3 . 2 . . 1 . 1 1 1 14 2 . 4 14 1 4 1 Max in Single Turn 4 | . . 1 . 1 . 1 . 1 . . 1 . 1 1 1 4 1 . 1 1 1 2 1 Garrison Access 6 | . . . . 1 . . . . . . . . . . . 1 . . 1 1 2 . . Machines Repaired . | . . . . . . . . . . . . . . . . . . . . . . . . Machines Dismantled . | . . . . . . . . . . . . . . . . . . . . . . . . Machines Sabotaged . | . . . . . . . . . . . . . . . . . . . . . . . . Overloaded Fab Kills . | . . . . . . . . . . . . . . . . . . . . . . . . Hacking | -11 -10 -10 -8 -8 -8 -6 -6 -6 -6 -6 -5 -5 -5 -5 -4 -4 -4 -4 -3 -3 -2 -1 -1 --------- Run | Yrd Mat Sub Mat Sto Rec Fac Was Fac Low Low Fac Upp Upp War Pro Fac Ext Cet Res Tes Res Acc Com Machines Accessed 74 | . 6 1 4 2 7 5 . 9 . . 5 . 2 3 . 4 8 1 2 6 . 7 2 Terminals 47 | . 4 . 4 1 2 3 . 6 . . 3 . . . . 2 8 1 . 5 . 6 2 Fabricators 2 | . . . . . . 1 . . . . 1 . . . . . . . . . . . . Repair Stations . | . . . . . . . . . . . . . . . . . . . . . . . . Recycling Units 7 | . 2 . . . 4 . . 1 . . . . . . . . . . . . . . . Scanalyzers 4 | . . . . . . . . 1 . . . . . . . 1 . . 1 . . 1 . Garrison Access 7 | . . . . 1 . 1 . 1 . . 1 . . . . 1 . . 1 1 . . . Total Hacks 148 | . 11 1 9 3 11 12 . 17 . . 12 . 2 9 . 5 21 1 2 16 . 13 3 Successful 74 | . 5 1 4 2 10 3 . 3 . . 4 . 2 9 . 3 11 1 1 8 . 4 3 Failed 73 | . 6 . 5 1 1 9 . 13 . . 8 . . . . 2 10 . 1 8 . 9 . Catastrophic 11 | . . . 1 . . 1 . 4 . . . . . . . 2 . . 1 . . 2 . Database Lockouts 1 | . . . . . . . . 1 . . . . . . . . . . . . . . . Manual 59 | . 9 . 9 1 8 8 . 10 . . 2 . . . . 2 5 1 . 2 . 1 1 Terminals 102 | . 9 . 9 1 3 5 . 13 . . 8 . . . . 3 21 1 . 15 . 11 3 Fabricators 5 | . . . . . . 3 . . . . 2 . . . . . . . . . . . . Repair Stations . | . . . . . . . . . . . . . . . . . . . . . . . . Recycling Units 8 | . 2 . . . 5 . . 1 . . . . . . . . . . . . . . . Scanalyzers 5 | . . . . . . . . 1 . . . . . . . 1 . . 1 . . 2 . Garrison Access 13 | . . . . 2 . 4 . 2 . . 2 . . . . 1 . . 1 1 . . . Terminal Hacks 47 | . 2 1 3 1 4 1 . 2 . . 1 . 2 9 . . 9 1 . 6 . 3 2 Record 10 | . . . . . 1 . . . . . . . 1 8 . . . . . . . . . Part Schematic 2 | . . . 1 . . . . 1 . . . . . . . . . . . . . . . Robot Analysis 2 | . 1 . 1 . . . . . . . . . . . . . . . . . . . . Open Door 11 | . . . . 1 . . . . . . . . 1 1 . . 4 1 . . . 2 1 Branch Access Points 4 | . . . 1 . . . . 1 . . 1 . . . . . . . . . . 1 . Terminal Index 1 | . . . . . . 1 . . . . . . . . . . . . . . . . . Recycling Unit Index 1 | . 1 . . . . . . . . . . . . . . . . . . . . . . Alert Level 4 | . . . . . 1 . . . . . . . . . . . 1 . . 2 . . . Unreport Threat 4 | . . . . . . . . . . . . . . . . . 2 . . 2 . . . Locate Traps 2 | . . . . . . . . . . . . . . . . . 1 . . . . . 1 Zone Layout 3 | . . . . . . . . . . . . . . . . . 1 . . 2 . . . Proto ID Catalog 1 | . . 1 . . . . . . . . . . . . . . . . . . . . . Release Object 2 | . . . . . 2 . . . . . . . . . . . . . . . . . . Fabricator Hacks 3 | . . . . . . 1 . . . . 2 . . . . . . . . . . . . Load Schematic 2 | . . . . . . 1 . . . . 1 . . . . . . . . . . . . Build 1 | . . . . . . . . . . . 1 . . . . . . . . . . . . Repair Station Hacks . | . . . . . . . . . . . . . . . . . . . . . . . . Recycling Unit Hacks . | . . . . . . . . . . . . . . . . . . . . . . . . Scanalyzer 2 | . . . . . . . . . . . . . . . . 1 . . 1 . . . . Retrieve Study 2 | . . . . . . . . . . . . . . . . 1 . . 1 . . . . Garrison Access Hacks 3 | . . . . 1 . . . . . . . . . . . 1 . . . 1 . . . Seal Access 3 | . . . . 1 . . . . . . . . . . . 1 . . . 1 . . . Unauthorized Hacks 19 | . 3 . 1 . 6 1 . 1 . . 1 . . . . 1 2 . . 1 . 1 1 Terminals 12 | . 1 . 1 . 1 1 . 1 . . 1 . . . . 1 2 . . 1 . 1 1 Botnet 12 | . 1 . 1 . 1 1 . 1 . . 1 . . . . 1 2 . . 1 . 1 1 Fabricators . | . . . . . . . . . . . . . . . . . . . . . . . . Repair Stations . | . . . . . . . . . . . . . . . . . . . . . . . . Recycling Units 7 | . 2 . . . 5 . . . . . . . . . . . . . . . . . . Reject 1 | . . . . . 1 . . . . . . . . . . . . . . . . . . Mask 1 | . . . . . 1 . . . . . . . . . . . . . . . . . . Tunnel 5 | . 2 . . . 3 . . . . . . . . . . . . . . . . . . Scanalyzers . | . . . . . . . . . . . . . . . . . . . . . . . . Garrison Access . | . . . . . . . . . . . . . . . . . . . . . . . . Data Cores Recovered 2 | . . . . . . . . . . . . . . . . . 1 . . . . 1 . Used 1 | . . . . . . . . . . . . . . . . . 1 . . . . . . Hacking Detections 50 | . 4 . 4 . 2 5 . 8 . . 4 . . . . 2 8 1 2 4 . 5 1 Full Trace Events 4 | . . . . . . 1 . . . . 1 . . . . . . . . 1 . 1 . Feedback Events . | . . . . . . . . . . . . . . . . . . . . . . . . Feedback Blocked . | . . . . . . . . . . . . . . . . . . . . . . . . Robot Schematics Acquired . | . . . . . . . . . . . . . . . . . . . . . . . . Robots Built . | . . . . . . . . . . . . . . . . . . . . . . . . Authchips . | . . . . . . . . . . . . . . . . . . . . . . . . Time . | . . . . . . . . . . . . . . . . . . . . . . . . Total Robot Build Rating . | . . . . . . . . . . . . . . . . . . . . . . . . Part Schematics Acquired 3 | . . . 1 . . . . 1 . . . . . . . . . . . 1 . . . Parts Built 2 | . . . . . . . . . . . 2 . . . . . . . . . . . . Authchips . | . . . . . . . . . . . . . . . . . . . . . . . . Time 73 | . . . . . . . . . . . 73 . . . . . . . . . . . . Total Part Build Rating 6 | . . . . . . . . . . . 6 . . . . . . . . . . . . Part Studies Acquired 2 | . . . . . . . . . . . . . . . . 1 . . 1 . . . . Parts Repaired . | . . . . . . . . . . . . . . . . . . . . . . . . Time . | . . . . . . . . . . . . . . . . . . . . . . . . Parts Recycled . | . . . . . . . . . . . . . . . . . . . . . . . . Recycled Matter . | . . . . . . . . . . . . . . . . . . . . . . . . Retrieved Matter . | . . . . . . . . . . . . . . . . . . . . . . . . Retrieved Components . | . . . . . . . . . . . . . . . . . . . . . . . . Parts Scanalyzed . | . . . . . . . . . . . . . . . . . . . . . . . . Part Schematics Acquired . | . . . . . . . . . . . . . . . . . . . . . . . . Parts Damaged . | . . . . . . . . . . . . . . . . . . . . . . . . Bothacking | -11 -10 -10 -8 -8 -8 -6 -6 -6 -6 -6 -5 -5 -5 -5 -4 -4 -4 -4 -3 -3 -2 -1 -1 ------------ Run | Yrd Mat Sub Mat Sto Rec Fac Was Fac Low Low Fac Upp Upp War Pro Fac Ext Cet Res Tes Res Acc Com Used RIF Installer . | . . . . . . . . . . . . . . . . . . . . . . . . Robots Hacked . | . . . . . . . . . . . . . . . . . . . . . . . . Non-combat . | . . . . . . . . . . . . . . . . . . . . . . . . Combat . | . . . . . . . . . . . . . . . . . . . . . . . . Robot Hacks Applied . | . . . . . . . . . . . . . . . . . . . . . . . . Relay Couplers Released 3 | . . . . . . . . . . . . . . . . . . . 1 . 2 . . Machine Destruction 3 | . . . . . . . . . . . . . . . . . . . 1 . 2 . . Fabnet Peak Effective % . | . . . . . . . . . . . . . . . . . . . . . . . . Robots Rewired 13 | . . . . . . . . . . . . . . . . . 13 . . . . . . Allies Hacked . | . . . . . . . . . . . . . . . . . . . . . . . . Hacks Repelled . | . . . . . . . . . . . . . . . . . . . . . . . . Allies | -11 -10 -10 -8 -8 -8 -6 -6 -6 -6 -6 -5 -5 -5 -5 -4 -4 -4 -4 -3 -3 -2 -1 -1 -------- Run | Yrd Mat Sub Mat Sto Rec Fac Was Fac Low Low Fac Upp Upp War Pro Fac Ext Cet Res Tes Res Acc Com Total Allies 30 | . . 3 . . 4 . . . . . . . . . . . 18 5 . . . . . Largest Group 13 | . . 3 3 . 3 1 . . . . . . . . . . 11 13 12 5 . . . Highest-Rated Group 911 | . . 57 57 . 57 19 . . . . . . . . . . 572 911 870 343 . . . Highest-Rated Ally 159 | . . 19 19 . 19 19 . . . . . . . . . . 159 159 143 96 . . . Total Orders 2 | . . . . . . . . . . . . . . . . . . 2 . . . . . STAY 1 | . . . . . . . . . . . . . . . . . . 1 . . . . . FOLLOW 1 | . . . . . . . . . . . . . . . . . . 1 . . . . . Ally Attacks 275 | . . 7 12 . 19 4 . . . . . . . . . . 75 40 78 40 . . . Total Damage 7667 | . . 114 77 . 282 82 . . . . . . . . . . 1668 1168 2863 1413 . . . Kills 59 | . . 3 . . 5 1 . . . . . . . . . . 16 6 18 10 . . . Allies Corrupted 4 | . . . . . . . . . . . . . . . . . . . 2 2 . . . Allies Melted 10 | . . . . . . . . . . . . . . 2 . . . . . . 1 . 7 Intel | -11 -10 -10 -8 -8 -8 -6 -6 -6 -6 -6 -5 -5 -5 -5 -4 -4 -4 -4 -3 -3 -2 -1 -1 ------- Run | Yrd Mat Sub Mat Sto Rec Fac Was Fac Low Low Fac Upp Upp War Pro Fac Ext Cet Res Tes Res Acc Com Active Infowar (turns) 13055 | . . . . . . 1223 12 749 412 462 840 367 431 436 425 1427 6 . 1379 723 1518 2116 529 Optics 3192 | . . . . . . . . . . . . . . 2 . . . . . . 545 2116 529 Sensors 9348 | . . . . . . 939 12 748 381 460 840 364 431 434 425 1183 6 . 1379 723 1023 . . Terrain 153 | . . . . . . 153 . . . . . . . . . . . . . . . . . Traps 2171 | . . . . . . 1153 . 516 36 . 334 132 . . . . . . . . . . . Decoding 1359 | . . . . . . . . . . . . . . . . 1359 . . . . . . . ECM 31 | . . . . . . . . . 27 4 . . . . . . . . . . . . . Robot Analysis Total 2 | . 1 . 1 . . . . . . . . . . . . . . . . . . . . Derelict Logs Recovered 6 | . . . . . . . . . 1 . . 2 1 . 2 . . . . . . . . Drone Launches . | . . . . . . . . . . . . . . . . . . . . . . . . Drone Recoveries . | . . . . . . . . . . . . . . . . . . . . . . . . Decoded 0b10 Intel 65 | . . . . . . . . . . . . . . . . 65 . . . . . . . Items 65 | . . . . . . . . . . . . . . . . 65 . . . . . . . Exploration | -11 -10 -10 -8 -8 -8 -6 -6 -6 -6 -6 -5 -5 -5 -5 -4 -4 -4 -4 -3 -3 -2 -1 -1 ------------- Run | Yrd Mat Sub Mat Sto Rec Fac Was Fac Low Low Fac Upp Upp War Pro Fac Ext Cet Res Tes Res Acc Com Turns Passed 23894 | 70 1270 1774 562 246 2177 1416 32 872 644 559 840 385 431 894 514 1437 1555 779 1397 907 1620 2116 1397 Spaces Moved 18716 | 37 498 991 424 168 1372 1620 67 1095 802 344 880 507 656 920 495 1001 1173 336 968 774 1643 1086 859 Core 1 | 1 . . . . . . . . . . . . . . . . . . . . . . . Treads 3153 | 36 498 991 . . . . . . . . . . . . 118 538 190 234 303 . 26 73 146 Legs 5771 | . . . . . . 2 67 322 802 344 643 . . 405 377 104 553 102 228 313 356 440 713 Wheels 1699 | . . . 424 168 1107 . . . . . . . . . . . . . . . . . . Hover 3498 | . . . . . 265 1112 . 773 . . . . . 105 . 296 . . 345 17 133 452 . Flight 4594 | . . . . . . 506 . . . . 237 507 656 410 . 63 430 . 92 444 1128 121 . Fastest Speed 43 | 50 160 160 80 80 64 43 48 48 48 48 65 65 65 47 71 45 45 123 123 51 51 56 56 Average Speed 86 | 157 160 160 84 82 83 59 48 48 48 48 75 69 65 68 89 93 76 145 133 79 76 147 60 Slowest Speed 210 | 160 160 160 85 85 135 64 48 48 48 65 80 80 65 101 101 124 153 173 153 138 210 181 123 Overloaded Moves . | . . . . . . . . . . . . . . . . . . . . . . . . Propulsion Burnouts . | . . . . . . . . . . . . . . . . . . . . . . . . Robots Hopped 6 | . . . . . . . . . . . . . 1 . . 1 4 . . . . . . Potential Cave-ins . | . . . . . . . . . . . . . . . . . . . . . . . . Cave-ins Triggered . | . . . . . . . . . . . . . . . . . . . . . . . . Exploration Rate (%) 51 | 4 82 69 44 31 98 31 66 25 77 23 22 56 70 81 64 18 88 74 31 83 59 17 18 Regions Visited 23 Branch Regions 13 Pre-discovered Areas 6 | . 2 . . . 3 . . . . . . . 1 . . . . . . . . . . Known Exits Taken 16 | . . . 1 . . . . 1 1 1 1 1 1 1 1 1 1 1 1 1 1 1 . Unknown Exits Taken 5 | 1 1 1 . 1 1 . . . . . . . . . . . . . . . . . . Scrap Searched 23 | . . 12 . . . . . . 7 1 . . . . 3 . . . . . . . . Spaces Dug 65 | . . . . . . 1 . 3 2 . 15 . . . . 30 . . . 3 5 5 1 Terrain Destroyed 610 | . . 17 10 3 8 28 . 26 52 . 18 . . 19 5 173 40 2 3 56 64 54 32 Melee . | . . . . . . . . . . . . . . . . . . . . . . . . Projectile 378 | . . 1 10 3 . 1 . 12 11 . 18 . . 19 5 99 40 2 3 21 64 48 21 AOE 231 | . . 16 . . 8 27 . 14 41 . . . . . . 73 . . . 35 . 6 11 Terrain Rammed . | . . . . . . . . . . . . . . . . . . . . . . . . Walls Destroyed . | . . . . . . . . . . . . . . . . . . . . . . . . Machines Disabled . | . . . . . . . . . . . . . . . . . . . . . . . . Actions | -11 -10 -10 -8 -8 -8 -6 -6 -6 -6 -6 -5 -5 -5 -5 -4 -4 -4 -4 -3 -3 -2 -1 -1 --------- Run | Yrd Mat Sub Mat Sto Rec Fac Was Fac Low Low Fac Upp Upp War Pro Fac Ext Cet Res Tes Res Acc Com Total 24688 | 46 888 1120 547 230 2385 1985 66 1397 1010 701 1036 533 658 1110 539 1322 1694 610 1052 988 1883 1417 1471 Wait 3808 | . 313 43 47 32 913 203 . 196 138 313 110 19 . 62 3 154 308 249 35 90 106 184 290 Move 18684 | 36 497 990 423 167 1371 1620 66 1094 801 343 879 506 653 919 494 998 1166 335 967 773 1642 1085 859 Hop 4 | . . . . . . . . . . . . . 1 . . 1 2 . . . . . . Pick Up 228 | 4 14 14 13 1 31 20 . 20 6 3 13 . 1 9 4 11 5 8 6 4 15 7 19 Fast Attach 117 | 6 6 5 5 . 1 7 . 3 4 2 4 . 1 14 . 7 3 1 7 14 6 2 19 Attach 71 | . 2 1 4 . 5 1 . 5 3 2 . . . . . 8 1 1 2 3 4 3 26 Detach 32 | . . . . . . 2 . 2 1 . . . . 3 . 3 1 . 3 . 2 3 12 Swap 167 | . 4 7 6 6 8 37 . 10 10 3 3 3 . 3 5 15 3 1 3 13 8 3 16 Drop 255 | . 10 23 14 2 37 16 . 18 9 1 6 . 1 21 5 13 5 5 10 19 15 9 16 Fire 1180 | . 42 37 35 22 18 71 . 49 38 34 21 5 1 78 27 111 70 10 19 72 85 121 214 Melee . | . . . . . . . . . . . . . . . . . . . . . . . . Ram 2 | . . . . . 1 . . . . . . . . . . 1 . . . . . . . Kick . | . . . . . . . . . . . . . . . . . . . . . . . . Crush . | . . . . . . . . . . . . . . . . . . . . . . . . Escape Stasis 8 | . . . . . . 8 . . . . . . . . . . . . . . . . . Rewire 132 | . . . . . . . . . . . . . . 1 1 . 130 . . . . . . Trap . | . . . . . . . . . . . . . . . . . . . . . . . . Miscellaneous . | . . . . . . . . . . . . . . . . . . . . . . . . Route ------- -11/Scrapyard -10/Materials (discovered 5 exits: [*Mat x2] / [*Min x2] / *Sub) -10/Subcaves (discovered 2 exits: *Mat / *Rec) -8/Materials (discovered 2 exits: [*Fac] / *Sto) -8/Storage -8/Recycling -6/Factory (discovered 2 exits: *Fac x2) -6/Waste -6/Factory (discovered 3 exits: *Fac / *Low x2) -6/Lower Caves -6/Lower Caves -5/Factory (discovered 3 exits: Fac / *Upp x2) -5/Upper Caves -5/Upper Caves (discovered 2 exits: *Fac / *War) -5/Warlord -4/Proximity Caves -4/Factory (discovered 3 exits: *Res x2 / *Ext) -4/Extension (discovered 2 exits: *Res / *Cet) -4/Cetus (discovered 2 exits: *Res / [*Arc]) -3/Research (discovered 2 exits: Res / *Tes) -3/Testing -2/Research (discovered 3 exits: *Acc x3) -1/Access -1/Command (discovered 2 exits: Sur x2) By MAIN.C's Side History --------- Turn | Location | Event 48 | -11/Scrapyard | Discovered new exit (range 15) 71 | -11/Scrapyard | Entered Materials 314 | -10/Materials | Build established: Mutant 322 | -10/Materials | Discovered new exit (range 14) 558 | -10/Materials | Discovered new exit (range 16) 814 | -10/Materials | Discovered new exit (range 14) 1080 | -10/Materials | Discovered new exit (range 16) 1312 | -10/Materials | Discovered new exit (range 6) 1341 | -10/Materials | Entered Subcaves 1342 | -10/Subcaves | Approached by a straggling Scientist 1587 | -10/Subcaves | Shifting Twisted Machinery released Spk. Treads 1634 | -10/Subcaves | Shifting Twisted Machinery released Sub. Monowheel 1725 | -10/Subcaves | Disturbed a concealed Subdweller 1963 | -10/Subcaves | Core integrity fell below 50% 2019 | -10/Subcaves | Shifting Twisted Machinery released Sub. Beam Cannon 2024 | -10/Subcaves | Shifting Twisted Machinery released Sub. Power Source 2280 | -10/Subcaves | Build established: Scavenger-Mutant 2522 | -10/Subcaves | Visited triangular shrine 2533 | -10/Subcaves | Found Prototype Device 2533 | -10/Subcaves | Identified V3-11A's Pendant 2538 | -10/Subcaves | Befriended Subdweller 2709 | -10/Subcaves | Discovered new exit (range 10) 2840 | -10/Subcaves | Build established: Mutant 2850 | -10/Subcaves | Visited 4L-MR0's lab 2879 | -10/Subcaves | Found Maxwheels 2943 | -10/Subcaves | Befriended Subdweller 2943 | -10/Subcaves | Befriended Subdweller 3012 | -10/Subcaves | Discovered new exit (range 10) 3115 | -10/Subcaves | Entered Materials 3115 | -8/Materials | Accompanied by 3 allies 3115 | -8/Materials | Evolved 4 slots: Propulsion x2, Utility x2 3118 | -8/Materials | Attached Maxwheels, gained temporary slots: Weapon x2 3155 | -8/Materials | Identified exit to Storage 3318 | -8/Materials | Discovered new exit (range 7) 3447 | -8/Materials | Garrison activated, responded to threat 3677 | -8/Materials | Entered Storage 3709 | -8/Storage | Garrison activated, responded to threat 3714 | -8/Storage | Build established: Gunner 3920 | -8/Storage | Used back door to open Recycling access 3920 | -8/Storage | Discovered new exit (range 5) 3923 | -8/Storage | Entered Recycling 3982 | -8/Recycling | Befriended Subdweller 3987 | -8/Recycling | Befriended Subdweller 3987 | -8/Recycling | Befriended Subdweller 4030 | -8/Recycling | Build established: Mutant 4048 | -8/Recycling | Discovered new exit (range 15) 4113 | -8/Recycling | Core integrity fell below 50% 4420 | -8/Recycling | Befriended Subdweller 4711 | -8/Recycling | Entered Scraplab 4720 | -8/Recycling | Found Prototype Device 4720 | -8/Recycling | Identified Scrap Engine 5352 | -8/Recycling | Build established: Construct 6100 | -8/Recycling | Entered Factory 6100 | -6/Factory | Accompanied by 1 ally 6100 | -6/Factory | Evolved 4 slots: Power x1, Utility x2, Weapon x1 6397 | -6/Factory | Discovered new exit (range 13) 6696 | -6/Factory | Garrison activated, responded to threat 7082 | -6/Factory | Discovered new exit (range 15) 7090 | -6/Factory | Identified exit to Factory 7516 | -6/Factory | Sucked down chute 7516 | -6/Factory | Entered Waste 7531 | -6/Waste | EMP discharged 7535 | -6/Waste | Spotted C-40 Crusher 7538 | -6/Waste | Spotted C-40 Crusher 7538 | -6/Waste | Spotted C-40 Crusher 7541 | -6/Waste | Discovered new exit (range 16) 7541 | -6/Waste | Spotted C-40 Crusher 7542 | -6/Waste | Spotted C-40 Crusher 7548 | -6/Waste | Identified exit to Factory 7548 | -6/Waste | Entered Factory 7696 | -6/Factory | Garrison activated, responded to threat 7797 | -6/Factory | Core integrity fell below 50% 7833 | -6/Factory | Lost 3 parts (1p2u) 7901 | -6/Factory | Discovered exit to Factory (range 15) 7914 | -6/Factory | Identified exit to Lower Caves 8055 | -6/Factory | Garrison activated, responded to threat 8121 | -6/Factory | Central database locked down 8420 | -6/Factory | Entered Lower Caves 8423 | -6/Lower Caves | Core integrity fell below 20% 8516 | -6/Lower Caves | Learned location of 1 exit from Factory 8593 | -6/Lower Caves | Spotted B-75 Beast 9015 | -6/Lower Caves | Discovered new exit (range 4) 9016 | -6/Lower Caves | Identified exit to Lower Caves 9064 | -6/Lower Caves | Entered another Lower Caves area 9534 | -6/Lower Caves | Discovered exit to Factory (range 13) 9623 | -6/Lower Caves | Entered Factory 9623 | -5/Factory | Evolved 2 slots: Propulsion x1, Weapon x1 9624 | -5/Factory | Identified exit to Factory 10039 | -5/Factory | Identified exit to Upper Caves 10130 | -5/Factory | Fabricated Cryofiber Web (x2) 10463 | -5/Factory | Entered Upper Caves 10476 | -5/Upper Caves | Learned Factory garrison access intel 10634 | -5/Upper Caves | Identified exit to Upper Caves 10848 | -5/Upper Caves | Entered another Upper Caves area 10886 | -5/Upper Caves | Discovered exit to Factory (range 13) 10950 | -5/Upper Caves | Encountered a Warlord checkpoint 11056 | -5/Upper Caves | Learned location of Warlord (-5) 11196 | -5/Upper Caves | Discovered new exit (range 6) 11199 | -5/Upper Caves | Identified exit to Warlord 11279 | -5/Upper Caves | Entered Warlord 11302 | -5/Warlord | System corruption cleaned by Quarantine Array 11478 | -5/Warlord | Visited the Vortex Lab 11482 | -5/Warlord | Found Prototype Energy Cannon 11482 | -5/Warlord | Identified Vortex Driver 11487 | -5/Warlord | Found Vortex Driver 11497 | -5/Warlord | Warlord's base attacked by MAIN.C 11518 | -5/Warlord | Found Prototype Device 11518 | -5/Warlord | Identified Exp. Focal Shield 11532 | -5/Warlord | Found Prototype Processor 11532 | -5/Warlord | Identified Exp. Target Analyzer 11616 | -5/Warlord | Found Prototype Device 11616 | -5/Warlord | Identified Minesniffer Drone Bay 11672 | -5/Warlord | Met Warlord 11768 | -5/Warlord | Spotted B-86 Titan 11839 | -5/Warlord | Lost 4 allies 11839 | -5/Warlord | Warlord forces counterattacked 11866 | -5/Warlord | Spotted Striker 11882 | -5/Warlord | Spotted Executioner 11894 | -5/Warlord | Spotted Executioner 11953 | -5/Warlord | Found Prototype Processor 11953 | -5/Warlord | Identified Exp. Targeting Computer 11954 | -5/Warlord | Lost 9 allies 11979 | -5/Warlord | Found Prototype Processor 12028 | -5/Warlord | Spotted Executioner 12058 | -5/Warlord | Found Prototype Processor 12058 | -5/Warlord | Identified Exp. Core Analyzer (x2) 12069 | -5/Warlord | Spotted Executioner 12075 | -5/Warlord | Lost 5 allies 12161 | -5/Warlord | Discovered new exit (range 14) 12172 | -5/Warlord | Warlord base infiltrated, sounded retreat 12172 | -5/Warlord | Identified exit to Proximity Caves 12173 | -5/Warlord | Entered Proximity Caves 12176 | -4/Proximity Caves | Learned location of 1 exit from Research 12180 | -4/Proximity Caves | Learned Research terminal intel 12199 | -4/Proximity Caves | Lost 3 allies 12645 | -4/Proximity Caves | Acquired the password to a Derelict Tinkerer's latest research 12672 | -4/Proximity Caves | Discovered exit to Factory (range 15) 12687 | -4/Proximity Caves | Entered Factory 12687 | -4/Factory | Evolved 2 slots: Power x1, Utility x1 12688 | -4/Factory | Loaded intel: 3 garrison access locations 13233 | -4/Factory | Discovered new exit (range 7) 13241 | -4/Factory | Identified exit to Research 13318 | -4/Factory | Discovered exit to Research (range 11) 13320 | -4/Factory | Build established: Skirmisher 14021 | -4/Factory | Lost 4 parts (2p2w) 14105 | -4/Factory | Discovered new exit (range 16) 14123 | -4/Factory | Identified exit to Extension 14124 | -4/Factory | Entered Extension 14372 | -4/Extension | Build established: Construct 14452 | -4/Extension | Rescued a captive Derelict 14453 | -4/Extension | Rescued a captive Derelict 14546 | -4/Extension | Rescued a captive Derelict 14720 | -4/Extension | Spotted B-86 Titan 14731 | -4/Extension | Allies destroyed B-86 Titan 14737 | -4/Extension | Spotted B-86 Titan 14763 | -4/Extension | Allies destroyed B-86 Titan 14775 | -4/Extension | Lost 4 allies 15419 | -4/Extension | Build established: Commander-Construct 15421 | -4/Extension | Rescued A7 15441 | -4/Extension | Rescued a captive Derelict 15624 | -4/Extension | Discovered exit to Research (range 10) 15625 | -4/Extension | Discovered new exit (range 6) 15633 | -4/Extension | Identified exit to Cetus 15679 | -4/Extension | Entered Cetus 15679 | -4/Cetus | Accompanied by 11 allies (A7) 15684 | -4/Cetus | Acquired a Cetus Manufacturing Module code from A7 15698 | -4/Cetus | Spotted Cetus Guard 15698 | -4/Cetus | Spotted Cetus Guard 15701 | -4/Cetus | Spotted Cetus Guard 15707 | -4/Cetus | Spotted Cetus Guard 15708 | -4/Cetus | Destroyed Cetus Guard 15712 | -4/Cetus | Allies destroyed Cetus Guard 15713 | -4/Cetus | Destroyed Cetus Guard 15721 | -4/Cetus | Allies destroyed Cetus Guard 15782 | -4/Cetus | Started Cetus Manufacturing Module 15798 | -4/Cetus | Escorted A7 to Cetus Mainframe 15807 | -4/Cetus | Manufactured an Enhanced Grunt 15816 | -4/Cetus | Discovered new exit (range 16) 15832 | -4/Cetus | Manufactured an Enhanced Grunt 15843 | -4/Cetus | Spotted Cetus Guard 15843 | -4/Cetus | Spotted Cetus Guard 15845 | -4/Cetus | Destroyed Cetus Guard 15853 | -4/Cetus | Allies destroyed Cetus Guard 15853 | -4/Cetus | Spotted Cetus Guard 15857 | -4/Cetus | Manufactured an Enhanced Grunt 15857 | -4/Cetus | Destroyed Cetus Guard 15857 | -4/Cetus | Destroyed Cetus Guard 15870 | -4/Cetus | Discovered exit to Research (range 15) 15878 | -4/Cetus | Met Revision 17 15882 | -4/Cetus | Manufactured an Enhanced Grunt 15907 | -4/Cetus | Manufactured an Enhanced Grunt 16429 | -4/Cetus | Security sweep announced 16458 | -4/Cetus | Entered Research 16458 | -3/Research | Accompanied by 12 allies (A7) 16458 | -3/Research | Evolved 2 slots: Propulsion x1, Utility x1 16459 | -3/Research | Identified exit to Research 16460 | -3/Research | Loaded intel: 24 terminal locations 16463 | -3/Research | Received a hacking code to weaken MAIN.C 16658 | -3/Research | Revision forces began assault on 0b10 16735 | -3/Research | Met up with Revision 17++ 16745 | -3/Research | Found Prototype Processor 16745 | -3/Research | Identified Exp. Terrain Scan Processor 17158 | -3/Research | Research terminal network offline 17222 | -3/Research | Spotted Striker 17223 | -3/Research | Spotted Executioner 17244 | -3/Research | Found Prototype Device 17244 | -3/Research | Identified Adv. Kinecellerator 17257 | -3/Research | Found Prototype Processor 17257 | -3/Research | Identified Exp. Targeting Computer 17263 | -3/Research | Found Exp. Core Analyzer 17635 | -3/Research | Spotted Striker 17773 | -3/Research | Discovered new exit (range 4) 17777 | -3/Research | Identified exit to Testing 17852 | -3/Research | Lost 4 allies 17855 | -3/Research | Entered Testing 17855 | -3/Testing | Accompanied by 5 allies 17906 | -3/Testing | Found Exp. Core Analyzer 17926 | -3/Testing | Found Prototype Energy Gun 17926 | -3/Testing | Identified Hyp. EM Gauss Rifle 18060 | -3/Testing | Found Prototype Energy Cannon 18060 | -3/Testing | Identified Potential Cannon 18202 | -3/Testing | P-80 Master assimilated allied 97-DO0(b) 18245 | -3/Testing | Found Prototype Device 18245 | -3/Testing | Identified Exp. Thermal Shield 18252 | -3/Testing | Lost 3 allies 18534 | -3/Testing | Found Prototype Energy Gun 18534 | -3/Testing | Identified Warp Gun 18557 | -3/Testing | Build established: Construct 18643 | -3/Testing | Found Prototype Energy Cannon 18643 | -3/Testing | Identified Cld. Nova Cannon 18684 | -3/Testing | Discovered exit to Research (range 15) 18727 | -3/Testing | Found Prototype Device 18727 | -3/Testing | Identified Exp. Shield Generator 18762 | -3/Testing | Entered Research 18762 | -2/Research | Warlord forces began assault on 0b10 18762 | -2/Research | Evolved 2 slots: Propulsion x1, Utility x1 18872 | -2/Research | Research machine network offline 19114 | -2/Research | Build established: Scavenger-Construct 19138 | -2/Research | Borebot progress halted 19194 | -2/Research | Borebot progress halted 19223 | -2/Research | Spotted Striker 19491 | -2/Research | Warlord destroyed during the assault 19569 | -2/Research | Discovered new exit (range 12) 19574 | -2/Research | Identified exit to Access 19651 | -2/Research | Found Prototype Device 19651 | -2/Research | Identified Exp. Actuator Array 19720 | -2/Research | Spotted Striker 19803 | -2/Research | Spotted Striker 19805 | -2/Research | Spotted Executioner 19807 | -2/Research | Destroyed Executioner 19840 | -2/Research | Found Adv. Kinecellerator 19843 | -2/Research | Found Exp. Targeting Computer 19844 | -2/Research | Lost 3 allies 19899 | -2/Research | Discovered exit to Access (range 8) 19930 | -2/Research | Spotted Striker 19938 | -2/Research | Spotted Striker 19950 | -2/Research | Spotted Executioner 19950 | -2/Research | Spotted Striker 20004 | -2/Research | Lost 6 allies 20005 | -2/Research | Destroyed Executioner 20023 | -2/Research | Found Exp. Core Analyzer 20212 | -2/Research | Discovered exit to Access (range 22) 20221 | -2/Research | Spotted Striker 20232 | -2/Research | Destroyed Striker 20362 | -2/Research | Spotted Striker 20362 | -2/Research | Spotted Executioner 20382 | -2/Research | Entered Access 20382 | -1/Access | Evolved 2 slots: Propulsion x1, Utility x1 20601 | -1/Access | Garrison activated, responded to threat 21132 | -1/Access | First assault squad dispatched 21236 | -1/Access | Destroyed 7 combat bots 21499 | -1/Access | Identified exit to Command 22232 | -1/Access | Destroyed 8 combat bots 22292 | -1/Access | Destroyed 9 combat bots 22494 | -1/Access | Spotted B-99 Colossus 22494 | -1/Access | Spotted B-99 Colossus 22498 | -1/Access | Entered Command 22600 | -1/Command | Spotted B-99 Colossus 22629 | -1/Command | Spotted B-99 Colossus 22640 | -1/Command | Spotted M Guard 22640 | -1/Command | Spotted M Guard 22640 | -1/Command | Spotted Combat Programmer 22648 | -1/Command | Spotted Combat Programmer 22651 | -1/Command | System corruption reached 10% 22668 | -1/Command | Destroyed M Guard 22708 | -1/Command | Destroyed M Guard 22719 | -1/Command | Lost 5 parts (4u1w) 22722 | -1/Command | Destroyed Combat Programmer 22742 | -1/Command | System corruption reached 30% 22743 | -1/Command | Destroyed Combat Programmer 22743 | -1/Command | All MAIN.C guards destroyed 22867 | -1/Command | Found Prototype Device 22867 | -1/Command | Identified Thermal Barrier 22998 | -1/Command | First assault squad dispatched 23069 | -1/Command | Met MAIN.C 23069 | -1/Command | 0b10 Conduit disabled 23112 | -1/Command | Destroyed MAIN.C Shell 23114 | -1/Command | Surrendered to MAIN.C 23114 | -1/Command | Loaded intel: 62 machine locations 23114 | -1/Command | Loaded intel: 116 trap records 23114 | -1/Command | Identified exit to Surface 23114 | -1/Command | Discovered exit to Surface (range 96) 23114 | -1/Command | Discovered exit to Surface (range 51) 23122 | -1/Command | Found Prototype Protection 23158 | -1/Command | Found Adv. Kinecellerator 23160 | -1/Command | Found Prototype Device 23160 | -1/Command | Identified Exp. System Purifier 23214 | -1/Command | MAIN.C activated Command garrisons 23253 | -1/Command | Unknown forces attacked Command 23253 | -1/Command | Spotted EQ-002 23253 | -1/Command | Spotted EQ-006 23253 | -1/Command | Spotted EQ-005 23253 | -1/Command | Spotted EQ-000 23253 | -1/Command | Spotted EQ-003 23253 | -1/Command | Spotted EQ-011 23257 | -1/Command | Spotted EQ-001 23277 | -1/Command | Destroyed EQ-011 23288 | -1/Command | Destroyed EQ-002 23309 | -1/Command | Lost 6 allies 23352 | -1/Command | Spotted EQ-021 23352 | -1/Command | Spotted EQ-020 23352 | -1/Command | Spotted EQ-022 23352 | -1/Command | Spotted EQ-018 23352 | -1/Command | Spotted EQ-019 23359 | -1/Command | Destroyed EQ-022 23363 | -1/Command | Destroyed EQ-020 23381 | -1/Command | Spotted EQ-024 23382 | -1/Command | Spotted EQ-004 23383 | -1/Command | Spotted EQ-030 23384 | -1/Command | Spotted EQ-008 23397 | -1/Command | Destroyed EQ-024 23405 | -1/Command | Destroyed EQ-008 23426 | -1/Command | Found Prototype Ballistic Gun 23426 | -1/Command | Identified Multirail 23427 | -1/Command | Lost 17 allies 23442 | -1/Command | Phase Generator disabled 23472 | -1/Command | Spotted EQ-054 23472 | -1/Command | Spotted EQ-039 23472 | -1/Command | Spotted EQ-038 23472 | -1/Command | Spotted EQ-051 23475 | -1/Command | Destroyed EQ-038 23483 | -1/Command | Spotted EQ-057 23488 | -1/Command | Spotted EQ-055 23489 | -1/Command | Destroyed EQ-054 23490 | -1/Command | Spotted EQ-035 23492 | -1/Command | Spotted EQ-033 23492 | -1/Command | Destroyed EQ-039 23493 | -1/Command | Spotted EQ-031 23497 | -1/Command | Destroyed EQ-057 23497 | -1/Command | Spotted EQ-012 23500 | -1/Command | Destroyed EQ-033 23504 | -1/Command | Destroyed EQ-012 23527 | -1/Command | Lost 14 allies 23539 | -1/Command | Spotted EQ-023 23540 | -1/Command | Identified Centrium Heavy Armor Plating 23551 | -1/Command | Spotted EQ-052 23551 | -1/Command | Spotted EQ-046 23551 | -1/Command | Spotted EQ-053 23563 | -1/Command | Destroyed EQ-046 23572 | -1/Command | Spotted EQ-044 23578 | -1/Command | Spotted EQ-060 23583 | -1/Command | Destroyed EQ-061 23597 | -1/Command | Destroyed EQ-044 23633 | -1/Command | Lost 12 allies 23676 | -1/Command | Spotted EQ-074 23681 | -1/Command | Spotted EQ-070 23681 | -1/Command | Spotted EQ-065 23681 | -1/Command | Spotted EQ-064 23684 | -1/Command | Spotted EQ-095 23684 | -1/Command | Spotted EQ-079 23684 | -1/Command | Spotted EQ-066 23694 | -1/Command | Core integrity fell below 50% 23696 | -1/Command | Destroyed EQ-070 23699 | -1/Command | Spotted EQ-084 23737 | -1/Command | Spotted EQ-078 23753 | -1/Command | Lost 7 parts (4u3w) 23759 | -1/Command | Found Exp. Core Analyzer 23802 | -1/Command | Spotted EQ-110 23802 | -1/Command | Spotted EQ-112 23802 | -1/Command | Spotted EQ-111 23807 | -1/Command | Core integrity fell below 20% 23810 | -1/Command | Destroyed EQ-110 23821 | -1/Command | Spotted EQ-123 23851 | -1/Command | Lost 19 allies 23870 | -1/Command | Spotted EQ-093 23872 | -1/Command | Spotted EQ-120 23876 | -1/Command | Spotted EQ-115 23889 | -1/Command | Spotted EQ-130 23892 | -1/Command | Destroyed EQ-120 23892 | -1/Command | Spotted EQ-087 23893 | -1/Command | Attackers retreated from Command 23895 | *** | Fortifying 0b10! Last Messages --------------- 23885_ Adv. Cryofiber Web destroyed. 23888_ MAIN.C knocked back. 23889_ Knocked back. 23890_ Acquired 12 matter. 23891_ MAIN.C knocked back. 23892_ EQ-120 suffers critical hit (Meltdown). 23892_ Exp. Core Analyzer melted. 23892_ Particle Accelerator melted. 23892_ Lgt. Quantum Reactor melted. 23892_ Knocked back. 23893_ ALERT: Enemy forces retreating. MAIN.C: I admit your assistance was pivotal here. It looks like I was right to trust you. This attack appears to have been designed to merely test our defenses, although it was nearly effective enough to force me to take the conflict to the next level. Investigating the origins of these bots should be one of our highest priorities... [Achievement: Stronghold] Map ----- +----------------------------------------------------+ | # # ! #????????????????????????#?#?#?? | | # #!!! #????????????????????????#?#?#?? | | # # !! #????????????????????????#?#?#?? | | """# #########????????????????????????#?#?#?? | | """# #????????????????????????????????#?#?#?? | | """# #????????????????????????????????#?#?#?? | | """# #????????????????????????????????#?#?#?? | | # #????????????????????????????????#?#?#?? | | # #????????????????????????????????#?#?#?? | | # #?###########################????#?#?#?? | | # #?#?????????????????????????#????#?#?#?? | | # #?#?#######################?#????#?#?#?? | | #### #?#?#"""""" % %%% ############## | | ???# #?#?#"" % % % #?#??????????? | | #??# #?#?#""""" % % ############## | | #??# #?#?#"" % %%%%!]% ]/%![= | | #### #?#?# !% /=%/=[ % %!/%**! | | " #?#?# ! ] %=%=!%% % !%/%!=% | | !%* #?#?# %!%%!%=!%%[! % %%=############## | | ! !%= %#?#?# !!%%%%]!%!*[|%=% %[#?#??????????? | | # != %#?#?#=!!!%%%*%%[!% % * ############## | | # !%! #?#?# %!%%=%%M%%! %=%% #?#????#?#?#?? | | # ! #?#?# !!!%[!==%%![=%=[ "#?#????#?#?#?? | | # % ###?#!==!%%%%!/%% % #?#????#?#?#?? | | ==*=[ #?#!!*!!%%=!%!% % #?#????#?#?#?? | | !![*%%!#?#][%=[*!% %@%% %" #?#????#?#?#?? | | [!!==%[*####%=*%=!%=![% #?#????#?#?#?? | | % = !%%[=*!%!%[]*!!!= "" " #?#????#?#?#?? | | * =|==%%!==![%===!!%= " " "" #?#????#?#?#?? | | [ ==!==%[!%%[!* !% " #?#????#?#?#?? | | =]!!%%####%==% =! " #?#????#?#?#?? | | ![!!*!#?#=% ! "" """" """#?#????#?#?#?? | | !!#####?#%!%%=""" " " #?#????#?#?#?? | | !%*#???#?#######################?#????#?#?#?? | | % #???#?????????????????????????#????#?#?#?? | | #???###########################????#?#?#?? | | #??????????????????????????????????#?#?#?? | | !! #??????????????????????????????????#?#?#?? | | !! #??????????????????????????????????#?#?#?? | | ! #??????????????????????????????????#?#?#?? | | #########??????????????????????????????????#?#?#?? | | ???????????????????????????????????????????#?#?#?? | | ???????????????????????????????????????????#?#?#?? | | ???????????????????????????????????????????#?#?#?? | | ???????????????????????????????????????????#?#?#?? | | ???????????????????????????????????????????#?#?#?? | | ???????????????????????????????????????????#?#?#?? | | ???????????????????????????????????????????#?#?#?? | | ???????????????????????????????????????????#?#?#?? | | ???????????????????????????????????????????#?#?#?? | +----------------------------------------------------+ Best States ------------- Heat Dissipation 194 Coolant Potential 120 Energy Generation 101 Energy Capacity 1912 Matter Stores 300 Matter Capacity 300 Sight Range 23 Robot Scan Range 16 Terrain Scan Range 20 Terrain Scan Density 10 ECM Strength 2 Base Temperature (-) 200 Armor Coverage 1200 Resistance: KI 30 Resistance: TH 15 Resistance: EM 25 Core Shielding 40 Weapon Cycling 20 Phase Shifting 15 Evasion (%) 90 Targeting Accuracy 24 Core Analysis 12 Recoil Reduction 7 Particle Charging 30 Kinecelleration 50 Item Schematics ----------------- Huge Storage Unit | -8/Materials | Hacked Cryofiber Web | -6/Factory | Hacked Helical Railgun | -3/Testing | Archive Robot Schematics ------------------ None Fabricated ------------ Cryofiber Web | x2 | -5/Factory Repaired ---------- Nothing Studied --------- Railgun | -4/Factory | Hacked Lgt. Antimatter Reactor | -3/Research | Hacked Alien Tech Used ----------------- None Achievements -------------- Stronghold Challenges ------------ None Game ------ Seed NavigationNovaLayer Manual? 0 Play Time 04:52:04 Cumulative 386.2 hours Start 2026.09.11 @ 17:54:21 End 2026.09.11 @ 22:53:28 Sessions 1 Manual Loads 0 Difficulty Rogue Special Mode None Game No. 348 Rogue 294 Adventurer 54 Explorer 0 Win Type 8 Total 22 Types 14/1/1/1/1/0/1/1/1/1 Lore% 83 Gallery% 70 Achievement% 69 Wizard Run 0 Options --------- Layout 1 ASCII 0 Keyboard 0 Movement Mouse Keybinds 1 Fullscreen 2 Font 32/Tamsyn Map View 50x35 Zoom Use 0% Tactical HUD 1 Map Filters NONE Filters NONE Steam 1 RUN: 8b6df43b-108a-41e5-8024-4a82bb57b64e